fUSD/lending_fUSD_20250103
["ID","MTS","AMOUNT","RATE_DAILY","PERIOD"]
[347563080,1735919450385,-193.28,0.00010192,2]
[347563082,1735919450395,-429.51484354,0.00010197,2]
[347563084,1735919450404,-500.0,0.00010212,2]
[347563086,1735919450414,-16796.54012725,0.00010221,2]
[347563088,1735919450423,-1933.51,0.00010244,2]
[347563090,1735919450433,-769.37,0.00010244,2]
[347563092,1735919450442,-573.75,0.00010244,2]
[347563094,1735919450452,-500.0,0.00010244,2]
[347563096,1735919450462,-771.96,0.00010244,2]
[347563098,1735919450471,-1538.1,0.00010244,2]
[347563100,1735919450480,-2506.14,0.00010244,2]
[347563102,1735919450490,-2816.21,0.00010244,2]
[347563104,1735919450499,-3188.74,0.00010244,2]
[347563106,1735919450509,-500.0,0.00010244,2]
[347563108,1735919450519,-539.78,0.00010244,2]
[347563110,1735919450528,-828.09,0.00010244,2]
[347563112,1735919450537,-3336.27975029,0.00010317,2]
[347563114,1735919450547,-500.0,0.00010344,2]
[347563116,1735919450556,-2925.8,0.00010344,2]
[347563118,1735919450566,-500.0,0.00010344,2]
[347563120,1735919450578,-500.0,0.00010344,2]
[347563122,1735919450588,-977.44,0.00010344,2]
[347563124,1735919450604,-500.0,0.00010345,2]
[347563126,1735919450621,-666.7,0.00010345,2]
[347563128,1735919450631,-973.96,0.00010345,2]
[347563130,1735919450640,-541.31,0.00010345,2]
[347563132,1735919450650,-1228.89,0.00010345,2]
[347563134,1735919450659,-1000.0,0.00010345,2]
[347563136,1735919450669,-542.1,0.00010345,2]
[347563138,1735919450678,-500.0,0.00010345,2]
[347563140,1735919450688,-1934.6,0.00010345,2]
[347563142,1735919450697,-882.89,0.00010345,2]
[347563144,1735919450707,-1532.55,0.00010345,2]
[347563146,1735919450717,-1637.47,0.00010345,2]
[347563148,1735919450727,-16796.54012725,0.00010348,2]
[347563150,1735919450738,-152.0,0.00010357,4]
[347563152,1735919450747,-1237.42,0.00010393,2]
[347563154,1735919450757,-1031.91,0.00010413,2]
[347563156,1735919450767,-1359.78,0.00010413,2]
[347563158,1735919450777,-726.96,0.00010413,2]
[347563160,1735919450787,-1334.93,0.00010413,2]
[347563162,1735919450795,-500.0,0.00010413,2]
[347563164,1735919450805,-366.28358731,0.00010413,2]
[347563167,1735919450821,-1990.72641269,0.00010413,2]
[347563169,1735919450833,-500.0,0.00010413,2]
[347563171,1735919450842,-500.0,0.00010413,2]
[347563173,1735919450851,-500.0,0.00010413,2]
[347563175,1735919450861,-500.0,0.00010413,2]
[347563177,1735919450871,-1740.81,0.00010413,2]
[347563179,1735919450880,-500.0,0.00010414,2]
[347563181,1735919450890,-500.0,0.00010414,2]
[347563183,1735919450899,-500.0,0.00010414,2]
[347563185,1735919450908,-500.0,0.00010414,2]
[347563187,1735919450917,-500.0,0.00010414,2]
[347563189,1735919450926,-500.0,0.00010414,2]
[347563191,1735919450936,-500.0,0.00010414,2]
[347563193,1735919450945,-500.0,0.00010414,2]
[347563195,1735919450957,-500.0,0.00010414,2]
[347563197,1735919450968,-500.0,0.00010414,2]
[347563199,1735919450980,-500.0,0.00010414,2]
[347563201,1735919450992,-500.0,0.00010414,2]
[347563204,1735919451003,-500.0,0.00010414,2]
[347563206,1735919451014,-500.0,0.00010414,2]
[347563208,1735919451028,-500.0,0.00010414,2]
[347563210,1735919451038,-500.0,0.00010414,2]
[347563211,1735919451049,-500.0,0.00010414,2]
[347563212,1735919451060,-500.0,0.00010414,2]
[347563213,1735919451071,-500.0,0.00010414,2]
[347563214,1735919451084,-116.38603457,0.00010414,2]
[347563216,1735919451484,-383.20020393,9.319e-05,2]
[347563217,1735919451498,-2751.96067274,9.319e-05,2]
[347563218,1735919451510,-1103.0,9.794e-05,2]
[347563219,1735919451521,-383.61396543,0.00010414,2]
[347563220,1735919451532,-500.0,0.00010414,2]
[347563221,1735919451542,-500.0,0.00010414,2]
[347563222,1735919451554,-539.86,0.00010414,2]
[347563223,1735919451565,-517.36,0.00010414,2]
[347563224,1735919451576,-500.0,0.00010414,2]
[347563225,1735919451586,-500.0,0.00010414,2]
[347563226,1735919451597,-500.0,0.00010414,2]
[347563227,1735919451608,-500.0,0.00010414,2]
[347563228,1735919451618,-500.0,0.00010414,2]
[347563229,1735919451629,-500.0,0.00010414,2]
[347563230,1735919451641,-500.0,0.00010414,2]
[347563231,1735919451655,-500.0,0.00010414,2]
[347563232,1735919451666,-998.79,0.00010414,2]
[347563233,1735919451676,-500.0,0.00010414,2]
[347563234,1735919451687,-500.0,0.00010414,2]
[347563235,1735919451697,-500.0,0.00010414,2]
[347563236,1735919451707,-500.0,0.00010414,2]
[347563237,1735919451717,-500.0,0.00010414,2]
[347563238,1735919451728,-500.0,0.00010414,2]
[347563239,1735919451739,-500.0,0.00010414,2]
[347563240,1735919451751,-500.0,0.00010414,2]
[347563241,1735919451762,-500.0,0.00010414,2]
[347563242,1735919451774,-500.0,0.00010414,2]
[347563243,1735919451786,-500.0,0.00010414,2]
[347563244,1735919451797,-500.0,0.00010414,2]
[347563245,1735919451808,-1103.91,0.00010414,2]
[347563246,1735919451818,-567.84,0.00010414,2]
[347563247,1735919451828,-618.93,0.00010414,2]
[347563248,1735919451839,-844.94,0.00010414,2]
[347563249,1735919451849,-500.0,0.00010414,2]
[347563250,1735919451859,-500.0,0.00010414,2]
[347563251,1735919451869,-2580.04536183,0.00010414,2]
[347563252,1735919451883,-633.11463817,0.00010414,2]
[347563253,1735919451899,-1117.93,0.00010414,2]
[347563254,1735919451910,-500.0,0.00010414,2]
[347563255,1735919451921,-500.0,0.00010414,2]
[347563256,1735919451932,-500.0,0.00010414,2]
[347563257,1735919451943,-500.0,0.00010414,2]
[347563258,1735919451953,-207.54123818,0.00010414,2]
[347563259,1735919451970,-632.43876182,0.00010414,2]
[347563260,1735919451981,-500.0,0.00010414,2]
[347563261,1735919451992,-500.0,0.00010414,2]
[347563262,1735919452003,-500.0,0.00010414,2]
[347563263,1735919452014,-500.0,0.00010414,2]
[347563264,1735919452024,-500.0,0.00010414,2]
[347563265,1735919452035,-500.0,0.00010414,2]
[347563266,1735919452046,-682.48,0.00010414,2]
[347563267,1735919452056,-500.0,0.00010414,2]
[347563268,1735919452067,-500.0,0.00010414,2]
[347563269,1735919452077,-500.0,0.00010414,2]
[347563270,1735919452089,-500.0,0.00010414,2]
[347563271,1735919452101,-500.0,0.00010414,2]
[347563272,1735919452112,-1341.85,0.00010414,2]
[347563273,1735919452124,-500.0,0.00010414,2]
[347563274,1735919452135,-1839.57,0.00010414,2]
[347563275,1735919452146,-558.15,0.00010414,2]
[347563276,1735919452157,-500.0,0.00010414,2]
[347563277,1735919452168,-500.0,0.00010414,2]
[347563278,1735919452179,-712.41,0.00010414,2]
[347563279,1735919452191,-1970.07,0.00010414,2]
[347563280,1735919452203,-500.0,0.00010414,2]
[347563281,1735919452215,-500.0,0.00010414,2]
[347563282,1735919452226,-793.59,0.00010414,2]
[347563283,1735919452243,-1135.87,0.00010414,2]
[347563284,1735919452255,-500.0,0.00010414,2]
[347563285,1735919452267,-916.65,0.00010414,2]
[347563286,1735919452279,-500.0,0.00010414,2]
[347563287,1735919452290,-500.0,0.00010414,2]
[347563288,1735919452308,-500.0,0.00010414,2]
[347563289,1735919452320,-500.0,0.00010414,2]
[347563290,1735919452332,-500.0,0.00010414,2]
[347563291,1735919452344,-500.0,0.00010414,2]
[347563292,1735919452355,-500.0,0.00010414,2]
[347563293,1735919452367,-2628.99,0.00010414,2]
[347563294,1735919452379,-500.0,0.00010414,2]
[347563295,1735919452391,-2070.37,0.00010414,2]
[347563296,1735919452401,-500.0,0.00010414,2]
[347563297,1735919452412,-741.61,0.00010414,2]
[347563298,1735919452423,-500.0,0.00010414,2]
[347563299,1735919452435,-2265.52,0.00010414,2]
[347563300,1735919452447,-597.93,0.00010414,2]
[347563301,1735919452459,-500.0,0.00010414,2]
[347563302,1735919452471,-500.0,0.00010414,2]
[347563303,1735919452482,-500.0,0.00010415,2]
[347563304,1735919452494,-500.0,0.00010415,2]
[347563305,1735919452513,-500.0,0.00010415,2]
[347563306,1735919452524,-500.0,0.00010415,2]
[347563307,1735919452536,-500.0,0.00010415,2]
[347563308,1735919452547,-2098.39,0.00010415,2]
[347563309,1735919452559,-500.0,0.00010415,2]
[347563310,1735919452570,-500.0,0.00010415,2]
[347563311,1735919452583,-1320.51,0.00010415,2]
[347563312,1735919452594,-500.0,0.00010415,2]
[347563313,1735919452605,-500.0,0.00010415,2]
[347563314,1735919452616,-500.0,0.00010415,2]
[347563315,1735919452628,-4218.15,0.00010415,2]
[347563316,1735919452639,-500.0,0.00010415,2]
[347563317,1735919452651,-500.0,0.00010415,2]
[347563318,1735919452662,-500.0,0.00010415,2]
[347563319,1735919452673,-500.0,0.00010415,2]
[347563320,1735919452684,-2305.78716398,0.00010415,2]
[347563321,1735919452698,-1002.88764181,0.00010415,2]
[347563322,1735919452711,-882.25519421,0.00010415,2]
[347563323,1735919452722,-500.0,0.00010415,2]
[347563324,1735919452734,-500.0,0.00010415,2]
[347563325,1735919452745,-500.0,0.00010415,2]
[347563326,1735919452756,-1247.97,0.00010415,2]
[347563327,1735919452767,-500.0,0.00010415,2]
[347563328,1735919452779,-500.0,0.00010415,2]
[347563329,1735919452790,-500.0,0.00010415,2]
[347563330,1735919452801,-2876.1032055,0.00010415,2]
[347563331,1735919452815,-1031.4167945,0.00010415,2]
[347563332,1735919452826,-500.0,0.00010415,2]
[347563333,1735919452839,-500.0,0.00010415,2]
[347563334,1735919452850,-500.0,0.00010415,2]
[347563335,1735919452861,-500.0,0.00010415,2]
[347563336,1735919452872,-500.0,0.00010415,2]
[347563337,1735919452883,-500.0,0.00010415,2]
[347563338,1735919452895,-500.0,0.00010415,2]
[347563339,1735919452906,-585.71443699,0.00010415,2]
[347563340,1735919452917,-500.0,0.00010415,2]
[347563341,1735919452928,-500.0,0.00010415,2]
[347563342,1735919452939,-227.67732318,0.00010415,2]
[347563343,1735919452951,-500.0,0.00010415,2]
[347563344,1735919452962,-500.0,0.00010415,2]
[347563345,1735919452974,-500.0,0.00010415,2]
[347563346,1735919452985,-500.0,0.00010415,2]
[347563347,1735919452996,-500.0,0.00010415,2]
[347563348,1735919453007,-634.74,0.00010415,2]
[347563349,1735919453018,-500.0,0.00010415,2]
[347563350,1735919453030,-500.0,0.00010415,2]
[347563351,1735919453041,-500.0,0.00010415,2]
[347563352,1735919453052,-500.0,0.00010415,2]
[347563353,1735919453063,-500.0,0.00010415,2]
[347563354,1735919453074,-500.0,0.00010415,2]
[347563355,1735919453090,-500.0,0.00010415,2]
[347563356,1735919453101,-744.75,0.00010415,2]
[347563357,1735919453111,-500.0,0.00010415,2]
[347563358,1735919453123,-500.0,0.00010415,2]
[347563359,1735919453134,-500.0,0.00010415,2]
[347563360,1735919453145,-500.0,0.00010415,2]
[347563361,1735919453156,-500.0,0.00010415,2]
[347563362,1735919453167,-604.13,0.00010415,2]
[347563363,1735919453179,-500.0,0.00010415,2]
[347563364,1735919453190,-500.0,0.00010415,2]
[347563365,1735919453201,-506.64,0.00010415,2]
[347563366,1735919453212,-500.0,0.00010415,2]
[347563367,1735919453222,-500.0,0.00010415,2]
[347563368,1735919453234,-500.0,0.00010415,2]
[347563369,1735919453245,-416.97338742,0.00010415,2]
[347563370,1735919453258,-83.02661258,0.00010415,2]
[347563371,1735919453269,-500.0,0.00010415,2]
[347563372,1735919453279,-500.0,0.00010415,2]
[347563373,1735919453290,-500.0,0.00010415,2]
[347563374,1735919453304,-552.67721314,0.00010415,2]
[347563375,1735919453315,-500.0,0.00010415,2]
[347563376,1735919453329,-500.0,0.00010415,2]
[347563377,1735919453340,-500.0,0.00010415,2]
[347563378,1735919453352,-811.8,0.00010415,2]
[347563379,1735919453363,-500.0,0.00010415,2]
[347563380,1735919453374,-500.0,0.00010415,2]
[347563381,1735919453385,-500.0,0.00010415,2]
[347563382,1735919453397,-500.0,0.00010415,2]
[347563383,1735919453407,-500.0,0.00010415,2]
[347563384,1735919453417,-500.0,0.00010415,2]
[347563385,1735919453428,-500.0,0.00010415,2]
[347563386,1735919453439,-809.26,0.00010415,2]
[347563387,1735919453450,-1045.95,0.00010415,2]
[347563388,1735919453461,-500.0,0.00010415,2]
[347563389,1735919453471,-500.0,0.00010415,2]
[347563390,1735919453483,-500.0,0.00010415,2]
[347563391,1735919453493,-500.0,0.00010415,2]
[347563392,1735919453503,-500.0,0.00010415,2]
[347563393,1735919453513,-1478.74,0.00010415,2]
[347563394,1735919453524,-500.0,0.00010415,2]
[347563395,1735919453535,-500.0,0.00010415,2]
[347563396,1735919453546,-626.36,0.00010415,2]
[347563397,1735919453556,-951.82,0.00010415,2]
[347563398,1735919453566,-500.0,0.00010415,2]
[347563399,1735919453577,-500.0,0.00010415,2]
[347563400,1735919453588,-500.0,0.00010415,2]
[347563401,1735919453599,-947.32,0.00010415,2]
[347563402,1735919453609,-929.15,0.00010415,2]
[347563403,1735919453623,-500.0,0.00010415,2]
[347563404,1735919453636,-521.98,0.00010415,2]
[347563405,1735919453647,-500.0,0.00010415,2]
[347563406,1735919453657,-500.0,0.00010415,2]
[347563407,1735919453668,-500.0,0.00010415,2]
[347563408,1735919453679,-500.0,0.00010415,2]
[347563409,1735919453690,-500.0,0.00010415,2]
[347563410,1735919453700,-500.0,0.00010415,2]
[347563411,1735919453711,-944.21944353,0.00010415,2]
[347563412,1735919453724,-664.717,0.00010415,2]
[347563413,1735919453737,-316.65042733,0.00010415,2]
[347563414,1735919453757,-1950.35312914,0.00010415,2]
[347563415,1735919453768,-866.91,0.00010415,2]
[347563416,1735919453778,-500.0,0.00010415,2]
[347563417,1735919453788,-622.6,0.00010415,2]
[347563418,1735919453798,-1185.4,0.00010415,2]
[347563419,1735919453809,-1073.49,0.00010415,2]
[347563420,1735919453820,-500.0,0.00010415,2]
[347563421,1735919453833,-935.42,0.00010415,2]
[347563422,1735919453844,-1753.28,0.00010415,2]
[347563423,1735919453854,-500.0,0.00010415,2]
[347563424,1735919453864,-500.0,0.00010415,2]
[347563425,1735919453875,-1140.28,0.00010415,2]
[347563426,1735919453886,-500.0,0.00010415,2]
[347563427,1735919453897,-500.0,0.00010415,2]
[347563428,1735919453908,-985.48,0.00010415,2]
[347563429,1735919453918,-2049.49,0.00010415,2]
[347563430,1735919453929,-513.10568104,0.00010415,2]
[347563431,1735919453939,-500.0,0.00010416,2]
[347563432,1735919453950,-2635.42,0.00010416,2]
[347563433,1735919453961,-1927.72,0.00010416,2]
[347563434,1735919453972,-500.0,0.00010416,2]
[347563435,1735919453984,-1038.27,0.00010416,2]
[347563436,1735919453995,-938.89,0.00010416,2]
[347563437,1735919454006,-500.0,0.00010416,2]
[347563438,1735919454017,-311.686,0.0001042,2]
[347563439,1735919454028,-1000.0,0.00010471,2]
[347563440,1735919454039,-16796.54012725,0.00010476,2]
[347563441,1735919454050,-1933.51,0.00010518,2]
[347563442,1735919454061,-769.37,0.00010518,2]
[347563443,1735919454071,-573.75,0.00010518,2]
[347563444,1735919454084,-500.0,0.00010518,2]
[347563445,1735919454094,-771.96,0.00010518,2]
[347563446,1735919454105,-2506.14,0.00010518,2]
[347563447,1735919454116,-2816.21,0.00010518,2]
[347563448,1735919454127,-3188.74,0.00010518,2]
[347563449,1735919454138,-500.0,0.00010518,2]
[347563450,1735919454148,-539.78,0.00010518,2]
[347563451,1735919454159,-828.09,0.00010518,2]
[347563452,1735919454170,-162.403,0.0001052,2]
[347563453,1735919454180,-3000.099,0.0001052,2]
[347563454,1735919454191,-429.51484354,0.00010539,2]
[347563455,1735919454201,-771.63,0.00010576,2]
[347563456,1735919454212,-828.97,0.00010581,2]
[347563457,1735919454222,-229.48170311,0.00010589,2]
[347563458,1735919454233,-1612.0,0.000106,2]
[347563459,1735919454244,-16796.54012725,0.00010603,2]
[347563460,1735919454254,-500.0,0.00010618,2]
[347563461,1735919454265,-2925.8,0.00010618,2]
[347563462,1735919454275,-500.0,0.00010618,2]
[347563463,1735919454287,-500.0,0.00010618,2]
[347563464,1735919454300,-977.44,0.00010618,2]
[347563465,1735919454310,-666.7,0.00010619,2]
[347563466,1735919454320,-973.96,0.00010619,2]
[347563467,1735919454330,-541.31,0.00010619,2]
[347563468,1735919454340,-1228.89,0.00010619,2]
[347563469,1735919454349,-1000.0,0.00010619,2]
[347563470,1735919454359,-542.1,0.00010619,2]
[347563471,1735919454369,-500.0,0.00010619,2]
[347563472,1735919454759,-1934.6,0.00010619,2]
[347563473,1735919454782,-882.89,0.00010619,2]
[347563474,1735919454796,-1532.55,0.00010619,2]
[347563475,1735919454806,-1637.47,0.00010619,2]
[347563476,1735919454815,-1031.91,0.00010687,2]
[347563477,1735919454825,-1359.78,0.00010687,2]
[347563478,1735919454835,-726.96,0.00010687,2]
[347563479,1735919454845,-1334.93,0.00010687,2]
[347563480,1735919454854,-500.0,0.00010687,2]
[347563481,1735919454865,-2357.01,0.00010687,2]
[347563482,1735919454875,-500.0,0.00010687,2]
[347563483,1735919454884,-500.0,0.00010687,2]
[347563484,1735919454894,-529.0631715,0.00010687,2]
[347563485,1735919454904,-1740.81,0.00010687,2]
[347563486,1735919454914,-500.0,0.00010687,2]
[347563487,1735919454923,-500.0,0.00010688,2]
[347563488,1735919454933,-500.0,0.00010688,2]
[347563489,1735919454943,-500.0,0.00010688,2]
[347563490,1735919454952,-500.0,0.00010688,2]
[347563491,1735919454961,-500.0,0.00010688,2]
[347563492,1735919454971,-500.0,0.00010688,2]
[347563493,1735919454980,-500.0,0.00010688,2]
[347563494,1735919454991,-500.0,0.00010688,2]
[347563495,1735919455001,-433.65380089,0.00010688,2]
[347563496,1735919455011,-500.0,0.00010688,2]
[347563497,1735919455021,-500.0,0.00010688,2]
[347563498,1735919455030,-500.0,0.00010688,2]
[347563499,1735919455040,-500.0,0.00010688,2]
[347563500,1735919455049,-500.0,0.00010688,2]
[347563501,1735919455059,-500.0,0.00010688,2]
[347563502,1735919455069,-500.0,0.00010688,2]
[347563503,1735919455078,-593.47956528,0.00010688,2]
[347563504,1735919455088,-500.0,0.00010688,2]
[347563505,1735919455098,-500.0,0.00010688,2]
[347563506,1735919455108,-500.0,0.00010688,2]
[347563507,1735919455118,-500.0,0.00010688,2]
[347563508,1735919455128,-539.86,0.00010688,2]
[347563509,1735919455139,-517.36,0.00010688,2]
[347563510,1735919455148,-416.44134077,0.00010688,2]
[347563511,1735919455158,-500.0,0.00010688,2]
[347563512,1735919455168,-500.0,0.00010688,2]
[347563513,1735919455178,-500.0,0.00010688,2]
[347563514,1735919455187,-500.0,0.00010688,2]
[347563515,1735919455197,-500.0,0.00010688,2]
[347563516,1735919455206,-500.0,0.00010688,2]
[347563517,1735919455215,-500.0,0.00010688,2]
[347563518,1735919455225,-998.79,0.00010688,2]
[347563519,1735919455234,-500.0,0.00010688,2]
[347563520,1735919455244,-500.0,0.00010688,2]
[347563521,1735919455255,-500.0,0.00010688,2]
[347563522,1735919455264,-500.0,0.00010688,2]
[347563523,1735919455274,-500.0,0.00010688,2]
[347563524,1735919455283,-500.0,0.00010688,2]
[347563525,1735919455294,-500.0,0.00010688,2]
[347563526,1735919455306,-500.0,0.00010688,2]
[347563527,1735919455316,-500.0,0.00010688,2]
[347563528,1735919455326,-500.0,0.00010688,2]
[347563529,1735919455338,-500.0,0.00010688,2]
[347563530,1735919455348,-160.99474624,0.00010688,2]
[347563531,1735919455358,-1103.91,0.00010688,2]
[347563532,1735919455368,-567.84,0.00010688,2]
[347563533,1735919455378,-618.93,0.00010688,2]
[347563534,1735919455388,-844.94,0.00010688,2]
[347563535,1735919455397,-602.86447934,0.00010688,2]
[347563536,1735919455407,-500.0,0.00010688,2]
[347563537,1735919455416,-3213.16,0.00010688,2]
[347563538,1735919455426,-1117.93,0.00010688,2]
[347563539,1735919455436,-500.0,0.00010688,2]
[347563540,1735919455446,-500.0,0.00010688,2]
[347563541,1735919455456,-500.0,0.00010688,2]
[347563542,1735919455466,-500.0,0.00010688,2]
[347563543,1735919455475,-500.0,0.00010688,2]
[347563544,1735919455485,-839.98,0.00010688,2]
[347563545,1735919455495,-500.0,0.00010688,2]
[347563546,1735919455504,-500.0,0.00010688,2]
[347563547,1735919455515,-500.0,0.00010688,2]
[347563548,1735919455524,-500.0,0.00010688,2]
[347563549,1735919455534,-500.0,0.00010688,2]
[347563551,1735919455544,-682.48,0.00010688,2]
[347563552,1735919455553,-500.0,0.00010688,2]
[347563553,1735919455563,-500.0,0.00010688,2]
[347563554,1735919455573,-500.0,0.00010688,2]
[347563555,1735919455584,-500.0,0.00010688,2]
[347563556,1735919455594,-211.08868774,0.00010688,2]
[347563557,1735919455603,-1341.85,0.00010688,2]
[347563558,1735919455613,-500.0,0.00010688,2]
[347563559,1735919455622,-1839.57,0.00010688,2]
[347563560,1735919455632,-558.15,0.00010688,2]
[347563561,1735919455642,-500.0,0.00010688,2]
[347563562,1735919455652,-500.0,0.00010688,2]
[347563563,1735919455663,-712.41,0.00010688,2]
[347563564,1735919455674,-1970.07,0.00010688,2]
[347563565,1735919455684,-500.0,0.00010688,2]
[347563566,1735919455694,-500.0,0.00010688,2]
[347563567,1735919455703,-793.59,0.00010688,2]
[347563568,1735919455714,-1135.87,0.00010688,2]
[347563569,1735919455724,-500.0,0.00010688,2]
[347563570,1735919455734,-916.65,0.00010688,2]
[347563571,1735919455743,-500.0,0.00010688,2]
[347563572,1735919455753,-500.0,0.00010688,2]
[347563573,1735919455763,-245.54362564,0.00010688,2]
[347563574,1735919455774,-500.0,0.00010688,2]
[347563575,1735919455784,-500.0,0.00010688,2]
[347563576,1735919455794,-500.0,0.00010688,2]
[347563577,1735919455805,-500.0,0.00010688,2]
[347563578,1735919455815,-2628.99,0.00010688,2]
[347563579,1735919455824,-500.0,0.00010688,2]
[347563580,1735919455836,-500.0,0.00010688,2]
[347563581,1735919455846,-2070.37,0.00010688,2]
[347563582,1735919455855,-741.61,0.00010688,2]
[347563583,1735919455865,-500.0,0.00010688,2]
[347563584,1735919455875,-2265.52,0.00010688,2]
[347563585,1735919455885,-597.93,0.00010688,2]
[347563586,1735919455895,-500.0,0.00010688,2]
[347563587,1735919455905,-500.0,0.00010688,2]
[347563588,1735919455915,-500.0,0.00010689,2]
[347563589,1735919455925,-500.0,0.00010689,2]
[347563590,1735919455935,-500.0,0.00010689,2]
[347563591,1735919455945,-500.0,0.00010689,2]
[347563592,1735919455955,-500.0,0.00010689,2]
[347563593,1735919455965,-2098.39,0.00010689,2]
[347563594,1735919455975,-500.0,0.00010689,2]
[347563595,1735919455985,-500.0,0.00010689,2]
[347563596,1735919455995,-1320.51,0.00010689,2]
[347563597,1735919456005,-500.0,0.00010689,2]
[347563598,1735919456015,-177.99225978,0.00010689,2]
[347563599,1735919456024,-500.0,0.00010689,2]
[347563600,1735919456034,-4218.15,0.00010689,2]
[347563601,1735919456044,-500.0,0.00010689,2]
[347563602,1735919456054,-500.0,0.00010689,2]
[347563603,1735919456063,-288.03332046,0.00010689,2]
[347563604,1735919456074,-500.0,0.00010689,2]
[347563605,1735919456084,-4190.93,0.00010689,2]
[347563606,1735919456093,-500.0,0.00010689,2]
[347563607,1735919456103,-500.0,0.00010689,2]
[347563608,1735919456113,-500.0,0.00010689,2]
[347563609,1735919456123,-1247.97,0.00010689,2]
[347563610,1735919456133,-500.0,0.00010689,2]
[347563611,1735919456143,-500.0,0.00010689,2]
[347563612,1735919456154,-500.0,0.00010689,2]
[347563613,1735919456163,-3907.52,0.00010689,2]
[347563614,1735919456173,-500.0,0.00010689,2]
[347563615,1735919456183,-500.0,0.00010689,2]
[347563616,1735919456193,-500.0,0.00010689,2]
[347563617,1735919456203,-500.0,0.00010689,2]
[347563618,1735919456212,-500.0,0.00010689,2]
[347563619,1735919456221,-500.0,0.00010689,2]
[347563620,1735919456231,-500.0,0.00010689,2]
[347563621,1735919456241,-500.0,0.00010689,2]
[347563622,1735919456253,-500.0,0.00010689,2]
[347563623,1735919456262,-500.0,0.00010689,2]
[347563624,1735919456272,-416.22706721,0.00010689,2]
[347563625,1735919456283,-500.0,0.00010689,2]
[347563626,1735919456294,-500.0,0.00010689,2]
[347563627,1735919456310,-500.0,0.00010689,2]
[347563628,1735919456319,-634.74,0.00010689,2]
[347563629,1735919456329,-500.0,0.00010689,2]
[347563630,1735919456340,-500.0,0.00010689,2]
[347563631,1735919456350,-294.79133455,0.00010689,2]
[347563632,1735919456360,-500.0,0.00010689,2]
[347563633,1735919456370,-500.0,0.00010689,2]
[347563634,1735919456380,-500.0,0.00010689,2]
[347563635,1735919456390,-500.0,0.00010689,2]
[347563636,1735919456400,-744.75,0.00010689,2]
[347563637,1735919456410,-500.0,0.00010689,2]
[347563638,1735919456419,-500.0,0.00010689,2]
[347563639,1735919456429,-500.0,0.00010689,2]
[347563640,1735919456439,-500.0,0.00010689,2]
[347563641,1735919456448,-500.0,0.00010689,2]
[347563642,1735919456458,-604.13,0.00010689,2]
[347563643,1735919456468,-500.0,0.00010689,2]
[347563644,1735919456477,-500.0,0.00010689,2]
[347563645,1735919456486,-506.64,0.00010689,2]
[347563646,1735919456495,-500.0,0.00010689,2]
[347563647,1735919456504,-500.0,0.00010689,2]